bitfinex-derivatives/quotes_BTCF0:USTF0_20251025
["timestamp","ask_amount","ask_price","bid_price","bid_amount"]
[1761428607988,0.83966511,111420.0,111410.0,0.0033]
[1761428608290,0.47886511,111420.0,111410.0,0.0033]
[1761428608689,0.83966511,111420.0,111410.0,0.0033]
[1761428609491,0.47886511,111420.0,111410.0,0.0033]
[1761428609679,0.83966511,111420.0,111410.0,0.0033]
[1761428610390,0.47886511,111420.0,111410.0,0.0033]
[1761428610589,0.83966511,111420.0,111410.0,0.0033]
[1761428611591,0.47886511,111420.0,111410.0,0.0033]
[1761428612292,0.47886278,111420.0,111410.0,0.0033]
[1761428612692,0.83966278,111420.0,111410.0,0.0033]
[1761428614701,0.47886278,111420.0,111410.0,0.0033]
[1761428615099,0.83966278,111420.0,111410.0,0.0033]
[1761428615300,0.47886278,111420.0,111410.0,0.0033]
[1761428615900,0.83966278,111420.0,111410.0,0.0033]
[1761428616506,0.47886278,111420.0,111410.0,0.0033]
[1761428616708,0.83966278,111420.0,111410.0,0.0033]
[1761428617401,0.47886278,111420.0,111410.0,0.0033]
[1761428617602,0.83966278,111420.0,111410.0,0.0033]
[1761428618402,0.47886278,111420.0,111410.0,0.0033]
[1761428618902,0.83966278,111420.0,111410.0,0.0033]
[1761428619104,0.47886278,111420.0,111410.0,0.0033]
[1761428619295,0.83966278,111420.0,111410.0,0.0033]
[1761428620397,0.47886278,111420.0,111410.0,0.0033]
[1761428620597,0.83966278,111420.0,111410.0,0.0033]
[1761428620805,0.47886278,111420.0,111410.0,0.0033]
[1761428621105,0.83966278,111420.0,111410.0,0.0033]
[1761428621404,0.47886278,111420.0,111410.0,0.0033]
[1761428621607,0.80742914,111420.0,111410.0,0.0033]
[1761428621906,0.44662914,111420.0,111410.0,0.0033]
[1761428622105,0.80742914,111420.0,111410.0,0.0033]
[1761428623802,0.44662914,111420.0,111410.0,0.0033]
[1761428624002,0.80742914,111420.0,111410.0,0.0033]
[1761428626399,0.96864766,111420.0,111410.0,0.0033]
[1761428627610,0.80742914,111420.0,111410.0,0.0033]
[1761428627800,0.80742914,111420.0,111410.0,0.04696]
[1761428628507,0.44662914,111420.0,111410.0,0.04696]
[1761428628708,0.80742914,111420.0,111410.0,0.04696]
[1761428629709,0.44662914,111420.0,111410.0,0.04696]
[1761428629900,0.80742914,111420.0,111410.0,0.04696]
[1761428630101,0.44662914,111420.0,111410.0,0.04696]
[1761428630403,0.60784766,111420.0,111410.0,0.04696]
[1761428630600,0.96864766,111420.0,111410.0,0.04696]
[1761428630806,0.83970719,111420.0,111410.0,0.04696]
[1761428632207,0.47890719,111420.0,111410.0,0.04696]
[1761428632410,0.83970719,111420.0,111410.0,0.04696]
[1761428633009,0.79141135,111420.0,111410.0,0.04696]
[1761428635610,0.47685135,111420.0,111410.0,0.06091]
[1761428638413,0.52514719,111420.0,111410.0,0.06091]
[1761428640508,0.47685135,111420.0,111410.0,0.06091]
[1761428640708,0.52514719,111420.0,111410.0,0.06091]
[1761428641715,0.52514719,111420.0,111410.0,0.04696]
[1761428641918,0.52514719,111420.0,111410.0,0.0033]
[1761428642317,0.52514719,111420.0,111410.0,0.04679]
[1761428642518,0.47685135,111420.0,111410.0,0.04679]
[1761428643917,0.4446133,111420.0,111410.0,0.04679]
[1761428644112,0.47685135,111420.0,111410.0,0.20800852]
[1761428644320,0.50103547,111420.0,111410.0,0.22139852]
[1761428644818,0.48829547,111420.0,111410.0,0.22139852]
[1761428645021,0.45605742,111420.0,111410.0,0.22139852]
[1761428647522,0.45605742,111420.0,111410.0,0.06018]
[1761428648826,0.09525742,111420.0,111410.0,0.06018]
[1761428649016,0.45605742,111420.0,111410.0,0.06018]
[1761428650928,0.45605742,111420.0,111410.0,0.22139852]
[1761428652128,0.09525742,111420.0,111410.0,0.22139852]
[1761428652330,0.45605742,111420.0,111410.0,0.22139852]
[1761428652529,0.46879742,111420.0,111410.0,0.22139852]
[1761428653023,0.10799742,111420.0,111410.0,0.22139852]
[1761428653230,0.46879742,111420.0,111410.0,0.22139852]
[1761428653418,0.10799742,111420.0,111410.0,0.22139852]
[1761428653625,0.46879742,111420.0,111410.0,0.22139852]
[1761428655425,0.10799742,111420.0,111410.0,0.22139852]
[1761428656031,0.46879742,111420.0,111410.0,0.22139852]
[1761428656527,0.10799742,111420.0,111410.0,0.22139852]
[1761428656727,0.46879742,111420.0,111410.0,0.22139852]
[1761428657834,0.10799742,111420.0,111410.0,0.22139852]
[1761428658034,0.46879742,111420.0,111410.0,0.22139852]
[1761428658836,0.50103547,111420.0,111410.0,0.22139852]
[1761428659738,0.14023547,111420.0,111410.0,0.22139852]
[1761428660234,0.50103547,111420.0,111410.0,0.22139852]
[1761428661138,0.48829547,111420.0,111410.0,0.22139852]
[1761428662442,0.12749547,111420.0,111410.0,0.22139852]
[1761428662642,0.48829547,111420.0,111410.0,0.22139852]
[1761428662940,0.12749547,111420.0,111410.0,0.22139852]
[1761428663142,0.48829547,111420.0,111410.0,0.22139852]
[1761428663639,0.50103547,111420.0,111410.0,0.22139852]
[1761428664742,0.14023547,111420.0,111410.0,0.22139852]
[1761428664944,0.50103547,111420.0,111410.0,0.22139852]
[1761428665135,0.14023547,111420.0,111410.0,0.22139852]
[1761428665441,0.50103547,111420.0,111410.0,0.22139852]
[1761428666042,0.14023547,111420.0,111410.0,0.22139852]
[1761428666238,0.14023547,111420.0,111410.0,0.20800852]
[1761428666447,0.50103547,111420.0,111410.0,0.20800852]
[1761428667648,0.50103547,111420.0,111410.0,0.22139852]
[1761428668641,0.50103547,111420.0,111410.0,0.24148758]
[1761428669350,0.14023547,111420.0,111410.0,0.24148758]
[1761428669551,0.50103547,111420.0,111410.0,0.24148758]
[1761428669750,0.14023547,111420.0,111410.0,0.24148758]
[1761428669955,0.50103547,111420.0,111410.0,0.24148758]
[1761428671556,0.14023547,111420.0,111410.0,0.24148758]
[1761428671754,0.50103547,111420.0,111410.0,0.24148758]
[1761428672351,0.14023547,111420.0,111410.0,0.24148758]
[1761428672553,0.50103547,111420.0,111410.0,0.24148758]
[1761428673453,0.14023547,111420.0,111410.0,0.24148758]
[1761428673654,0.50103547,111420.0,111410.0,0.24148758]
[1761428673852,0.14023547,111420.0,111410.0,0.24148758]
[1761428674053,0.50103547,111420.0,111410.0,0.24148758]
[1761428674759,0.50103547,111420.0,111410.0,0.22809758]
[1761428676151,0.14023547,111420.0,111410.0,0.22809758]
[1761428676664,0.50103547,111420.0,111410.0,0.04679]
[1761428676849,0.50103547,111420.0,111410.0,0.22809758]
[1761428677050,0.14023547,111420.0,111410.0,0.22809758]
[1761428677256,0.50103547,111420.0,111410.0,0.22809758]
[1761428677858,0.50103547,111420.0,111410.0,0.24198758]
[1761428678858,0.14023547,111420.0,111410.0,0.24198758]
[1761428679157,0.50103547,111420.0,111410.0,0.24198758]
[1761428680161,0.50103547,111420.0,111410.0,0.22809758]
[1761428680955,0.14023547,111420.0,111410.0,0.22809758]
[1761428681257,0.50103547,111420.0,111410.0,0.22809758]
[1761428681759,0.14023547,111420.0,111410.0,0.22809758]
[1761428681961,0.50103547,111420.0,111410.0,0.22809758]
[1761428682262,0.14023547,111420.0,111410.0,0.22809758]
[1761428682463,0.50103547,111420.0,111410.0,0.22809758]
[1761428682665,0.14023547,111420.0,111410.0,0.22809758]
[1761428682854,0.50103547,111420.0,111410.0,0.22809758]
[1761428683265,0.14023547,111420.0,111410.0,0.22809758]
[1761428683454,0.50103547,111420.0,111410.0,0.22809758]
[1761428684262,0.14023547,111420.0,111410.0,0.22809758]
[1761428684760,0.50103547,111420.0,111410.0,0.22809758]
[1761428684961,0.14023547,111420.0,111410.0,0.22809758]
[1761428685161,0.50103547,111420.0,111410.0,0.22809758]
[1761428685362,0.14023547,111420.0,111410.0,0.22809758]
[1761428685566,0.50103547,111420.0,111410.0,0.22809758]
[1761428686067,0.14023547,111420.0,111410.0,0.22809758]
[1761428686271,0.50103547,111420.0,111410.0,0.22809758]
[1761428686667,0.14023547,111420.0,111410.0,0.22809758]
[1761428686966,0.50103547,111420.0,111410.0,0.22809758]
[1761428688069,0.14023547,111420.0,111410.0,0.22809758]
[1761428688272,0.50103547,111420.0,111410.0,0.22809758]
[1761428689077,0.14023547,111420.0,111410.0,0.22809758]
[1761428689375,0.50103547,111420.0,111410.0,0.22809758]
[1761428690171,0.50103547,111420.0,111410.0,0.24198758]
[1761428690473,0.14023547,111420.0,111410.0,0.24198758]
[1761428690674,0.50103547,111420.0,111410.0,0.24198758]
[1761428690877,0.14023547,111420.0,111410.0,0.24198758]
[1761428691377,0.50103547,111420.0,111410.0,0.24198758]
[1761428691772,0.47685135,111420.0,111410.0,0.24198758]
[1761428691973,0.45457679,111420.0,111410.0,0.24198758]
[1761428692275,0.50123578,111420.0,111410.0,0.24198758]
[1761428692575,0.47702643,111420.0,111410.0,0.24198758]
[1761428692769,0.50123578,111420.0,111410.0,0.24198758]
[1761428692970,0.14043578,111420.0,111410.0,0.24198758]
[1761428693268,0.50123578,111420.0,111410.0,0.24198758]
[1761428694070,0.14043578,111420.0,111410.0,0.24198758]
[1761428694370,0.50123578,111420.0,111410.0,0.24198758]
[1761428694777,0.14043578,111420.0,111410.0,0.24198758]
[1761428694972,0.50123578,111420.0,111410.0,0.24198758]
[1761428696679,0.14043578,111420.0,111410.0,0.24198758]
[1761428696868,0.50123578,111420.0,111410.0,0.24198758]
[1761428697178,0.14043578,111420.0,111410.0,0.24198758]
[1761428697379,0.50123578,111420.0,111410.0,0.24198758]
[1761428697976,0.14043578,111420.0,111410.0,0.24198758]
[1761428698177,0.50123578,111420.0,111410.0,0.24198758]
[1761428698579,0.14043578,111420.0,111410.0,0.24198758]
[1761428698881,0.50123578,111420.0,111410.0,0.24198758]
[1761428699583,0.14043578,111420.0,111410.0,0.24198758]
[1761428700181,0.50123578,111420.0,111410.0,0.24198758]
[1761428700982,0.14043578,111420.0,111410.0,0.24198758]
[1761428701184,0.50123578,111420.0,111410.0,0.24198758]
[1761428701574,0.14043578,111420.0,111410.0,0.24198758]
[1761428701779,0.50123578,111420.0,111410.0,0.24198758]
[1761428701977,0.14043578,111420.0,111410.0,0.24198758]
[1761428703174,0.50123578,111420.0,111410.0,0.24198758]
[1761428703876,0.14043578,111420.0,111410.0,0.24198758]
[1761428704381,0.50123578,111420.0,111410.0,0.24198758]
[1761428704783,0.14043578,111420.0,111410.0,0.24198758]
[1761428705684,0.50123578,111420.0,111410.0,0.24198758]
[1761428706274,0.14043578,111420.0,111410.0,0.24198758]
[1761428706678,0.50123578,111420.0,111410.0,0.24198758]
[1761428709084,0.14043578,111420.0,111410.0,0.24198758]
[1761428709283,0.50123578,111420.0,111410.0,0.24198758]
[1761428710176,0.46895664,111420.0,111410.0,0.24198758]
[1761428712694,0.10815664,111420.0,111410.0,0.24198758]
[1761428712986,0.46895664,111420.0,111410.0,0.24198758]
[1761428713388,0.10815664,111420.0,111410.0,0.24198758]
[1761428713586,0.46895664,111420.0,111410.0,0.24198758]
[1761428714489,0.14043578,111420.0,111410.0,0.24198758]
[1761428714790,0.50123578,111420.0,111410.0,0.24198758]
[1761428714983,0.14043578,111420.0,111410.0,0.24198758]
[1761428715289,0.50123578,111420.0,111410.0,0.24198758]
[1761428715892,0.50123578,111420.0,111410.0,0.22809758]
[1761428716081,0.10815664,111420.0,111410.0,0.22809758]
[1761428716383,0.46895664,111420.0,111410.0,0.22809758]
[1761428716690,0.10815664,111420.0,111410.0,0.22809758]
[1761428716888,0.46895664,111420.0,111410.0,0.22809758]
[1761428717290,0.10815664,111420.0,111410.0,0.22809758]
[1761428717787,0.10815664,111420.0,111410.0,0.24072758]
[1761428718090,0.46895664,111420.0,111410.0,0.24072758]
[1761428718389,0.10815664,111420.0,111410.0,0.24072758]
[1761428719291,0.46895664,111420.0,111410.0,0.24072758]
[1761428719987,0.10815664,111420.0,111410.0,0.24072758]
[1761428720292,0.46895664,111420.0,111410.0,0.24072758]
[1761428720790,0.10815664,111420.0,111410.0,0.24072758]
[1761428720989,0.46895664,111420.0,111410.0,0.24072758]
[1761428721992,0.10815664,111420.0,111410.0,0.24072758]
[1761428722390,0.46895664,111420.0,111410.0,0.24072758]
[1761428722590,0.10815664,111420.0,111410.0,0.24072758]
[1761428722791,0.46895664,111420.0,111410.0,0.24072758]
[1761428723091,0.10815664,111420.0,111410.0,0.24072758]
[1761428723391,0.46895664,111420.0,111410.0,0.24072758]
[1761428723792,0.10815664,111420.0,111410.0,0.24072758]
[1761428724394,0.50123578,111420.0,111410.0,0.24072758]
[1761428724594,0.14043578,111420.0,111410.0,0.24072758]
[1761428724893,0.50123578,111420.0,111410.0,0.24072758]
[1761428725093,0.14043578,111420.0,111410.0,0.24072758]
[1761428725396,0.50123578,111420.0,111410.0,0.24072758]
[1761428726795,0.14043578,111420.0,111410.0,0.24072758]
[1761428727196,0.50123578,111420.0,111410.0,0.24072758]
[1761428727397,0.14043578,111420.0,111410.0,0.24072758]
[1761428727700,0.50123578,111420.0,111410.0,0.24072758]
[1761428728795,0.14043578,111420.0,111410.0,0.24072758]
[1761428729799,0.50123578,111420.0,111410.0,0.24072758]
[1761428729998,0.14043578,111420.0,111410.0,0.24072758]
[1761428730193,0.48849578,111420.0,111410.0,0.24072758]
[1761428730492,0.46920664,111420.0,111410.0,0.24072758]
[1761428730700,0.46920664,111420.0,111410.0,0.05942]
[1761428731089,0.10840664,111420.0,111410.0,0.05942]
[1761428731286,0.46920664,111420.0,111410.0,0.05942]
[1761428731800,0.10840664,111420.0,111410.0,0.05942]
[1761428732501,0.46920664,111420.0,111410.0,0.05942]
[1761428733199,0.10840664,111420.0,111410.0,0.05942]
[1761428733601,0.46920664,111420.0,111410.0,0.05942]
[1761428733800,0.10840664,111420.0,111410.0,0.05942]
[1761428734202,0.46920664,111420.0,111410.0,0.05942]
[1761428735005,0.10840664,111420.0,111410.0,0.05942]
[1761428735205,0.46920664,111420.0,111410.0,0.05942]
[1761428735798,0.46920664,111420.0,111410.0,0.04679]
[1761428736000,0.10840664,111420.0,111410.0,0.05962]
[1761428736201,0.46920664,111420.0,111410.0,0.05962]
[1761428736503,0.10840664,111420.0,111410.0,0.05962]
[1761428737004,0.10840664,111420.0,111410.0,0.22078245]
[1761428737303,0.46920664,111420.0,111410.0,0.22078245]
[1761428738410,0.10840664,111420.0,111410.0,0.22078245]
[1761428738612,0.46920664,111420.0,111410.0,0.22078245]
[1761428738910,0.50148578,111420.0,111410.0,0.22078245]
[1761428739103,0.14068578,111420.0,111410.0,0.22078245]
[1761428739300,0.50148578,111420.0,111410.0,0.22078245]
[1761428740703,0.14068578,111420.0,111410.0,0.22078245]
[1761428740903,0.50148578,111420.0,111410.0,0.22078245]
[1761428741905,0.50148578,111420.0,111410.0,0.31053155]
[1761428744803,0.14068578,111420.0,111410.0,0.31053155]
[1761428745103,0.50148578,111420.0,111410.0,0.20795245]
[1761428745913,0.14068578,111420.0,111410.0,0.20795245]
[1761428746114,0.50148578,111420.0,111410.0,0.20795245]
[1761428746307,0.14068578,111420.0,111410.0,0.20795245]
[1761428746502,0.50148578,111420.0,111410.0,0.20795245]
[1761428748010,0.14068578,111420.0,111410.0,0.20795245]
[1761428748213,0.50148578,111420.0,111410.0,0.20795245]
[1761428748713,0.14068578,111420.0,111410.0,0.20795245]
[1761428748911,0.50148578,111420.0,111410.0,0.20795245]
[1761428749512,0.14068578,111420.0,111410.0,0.20795245]
[1761428749913,0.50148578,111420.0,111410.0,0.20795245]
[1761428751313,0.14068578,111420.0,111410.0,0.20795245]
[1761428751815,0.50148578,111420.0,111410.0,0.20795245]
[1761428752316,0.14068578,111420.0,111410.0,0.20795245]
[1761428752514,0.50148578,111420.0,111410.0,0.20795245]
[1761428753822,0.14068578,111420.0,111410.0,0.20795245]
[1761428754119,0.50148578,111420.0,111410.0,0.20795245]
[1761428755020,0.14068578,111420.0,111410.0,0.20795245]
[1761428755323,0.50148578,111420.0,111410.0,0.20795245]
[1761428756425,0.14068578,111420.0,111410.0,0.20795245]
[1761428756722,0.50148578,111420.0,111410.0,0.20795245]
[1761428756911,0.14068578,111420.0,111410.0,0.20795245]
[1761428757113,0.50148578,111420.0,111410.0,0.20795245]
[1761428762132,0.14068578,111420.0,111410.0,0.20795245]
[1761428762324,0.50148578,111420.0,111410.0,0.20795245]
[1761428762630,0.14068578,111420.0,111410.0,0.20795245]
[1761428762831,0.50148578,111420.0,111410.0,0.20795245]
[1761428763434,0.14068578,111420.0,111410.0,0.20795245]
[1761428763626,0.50148578,111420.0,111410.0,0.20795245]
[1761428763825,0.14068578,111420.0,111410.0,0.20795245]
[1761428764024,0.50148578,111420.0,111410.0,0.20795245]
[1761428766136,0.14068578,111420.0,111410.0,0.20795245]
[1761428766429,0.50148578,111420.0,111410.0,0.20795245]
[1761428766736,0.14068578,111420.0,111410.0,0.20795245]
[1761428767033,0.50148578,111420.0,111410.0,0.20795245]
[1761428768027,0.14068578,111420.0,111410.0,0.20795245]
[1761428768228,0.50148578,111420.0,111410.0,0.20795245]
[1761428769636,0.14068578,111420.0,111410.0,0.20795245]
[1761428770139,0.50148578,111420.0,111410.0,0.20795245]
[1761428770435,0.14068578,111420.0,111410.0,0.20795245]
[1761428770736,0.50148578,111420.0,111410.0,0.20795245]
[1761428770939,0.50148578,111420.0,111410.0,0.18662245]
[1761428771136,0.50148578,111420.0,111410.0,0.02546]
[1761428771338,0.50148578,111420.0,111410.0,0.0033]
[1761428771726,0.50148578,111420.0,111410.0,0.02635]
[1761428772541,0.14068578,111420.0,111410.0,0.02635]
[1761428772841,0.50148578,111420.0,111410.0,0.02635]
[1761428773342,0.14068578,111420.0,111410.0,0.02635]
[1761428773738,0.50148578,111420.0,111410.0,0.02635]
[1761428774342,0.50148578,111420.0,111410.0,0.31774]
[1761428776442,0.66264823,111420.0,111410.0,0.31774]
[1761428776848,0.50148578,111420.0,111410.0,0.31774]
[1761428779447,0.50148578,111420.0,111410.0,0.3631]
[1761428781346,0.14068578,111420.0,111410.0,0.3631]
[1761428781646,0.50148578,111420.0,111410.0,0.3631]
[1761428782243,0.50148578,111420.0,111410.0,0.52426245]
[1761428782447,0.48849578,111420.0,111410.0,0.53712245]
[1761428785854,0.12769578,111420.0,111410.0,0.53712245]
[1761428786047,0.48849578,111420.0,111410.0,0.53712245]
[1761428786451,0.12769578,111420.0,111410.0,0.53712245]
[1761428786654,0.48849578,111420.0,111410.0,0.53712245]
[1761428786855,0.12769578,111420.0,111410.0,0.53712245]
[1761428787256,0.48849578,111420.0,111410.0,0.53712245]
[1761428789152,0.12769578,111420.0,111410.0,0.53712245]
[1761428789455,0.48849578,111420.0,111410.0,0.53712245]
[1761428791050,0.45621664,111420.0,111410.0,0.53712245]
[1761428791754,0.09541664,111420.0,111410.0,0.53712245]
[1761428791959,0.45621664,111420.0,111410.0,0.53712245]
[1761428792156,0.45621664,111420.0,111410.0,0.62687155]
[1761428792659,0.45621664,111420.0,111410.0,0.64699161]
[1761428793757,0.45621664,111420.0,111410.0,0.55724251]
[1761428793964,0.47002664,111420.0,111410.0,0.55724251]
[1761428794355,0.44581729,111420.0,111410.0,0.55724251]
[1761428796054,0.08501729,111420.0,111410.0,0.55724251]
[1761428796258,0.44581729,111420.0,111410.0,0.55724251]
[1761428796866,0.08501729,111420.0,111410.0,0.55724251]
[1761428797260,0.44581729,111420.0,111410.0,0.55724251]
[1761428800267,0.08501729,111420.0,111410.0,0.55724251]
[1761428800764,0.44581729,111420.0,111410.0,0.55724251]
[1761428801460,0.08501729,111420.0,111410.0,0.55724251]
[1761428801866,0.44581729,111420.0,111410.0,0.55724251]
[1761428805576,0.44581729,111420.0,111410.0,0.37596]
[1761428805870,0.44581729,111420.0,111410.0,0.55724251]
[1761428806366,0.44581729,111420.0,111410.0,0.54438251]
[1761428806769,0.47002664,111420.0,111410.0,0.54438251]
[1761428807168,0.47002664,111420.0,111410.0,0.55759251]
[1761428809675,0.10922664,111420.0,111410.0,0.55759251]
[1761428809866,0.47002664,111420.0,111410.0,0.55759251]
[1761428810173,0.10922664,111420.0,111410.0,0.55759251]
[1761428810372,0.47002664,111420.0,111410.0,0.55759251]
[1761428810672,0.10922664,111420.0,111410.0,0.55759251]
[1761428810874,0.47002664,111420.0,111410.0,0.55759251]
[1761428811073,0.10922664,111420.0,111410.0,0.55759251]
[1761428811274,0.47002664,111420.0,111410.0,0.55759251]
[1761428811865,0.45621664,111420.0,111410.0,0.55759251]
[1761428812577,0.09541664,111420.0,111410.0,0.55759251]
[1761428812777,0.45621664,111420.0,111410.0,0.55759251]
[1761428813581,0.47002664,111420.0,111410.0,0.55759251]
[1761428815487,0.45621664,111420.0,111410.0,0.55759251]
[1761428816385,0.09541664,111420.0,111410.0,0.55759251]
[1761428816582,0.45621664,111420.0,111410.0,0.55759251]
[1761428818584,0.09541664,111420.0,111410.0,0.55759251]
[1761428818785,0.45621664,111420.0,111410.0,0.55759251]
[1761428820692,0.09541664,111420.0,111410.0,0.55759251]
[1761428820993,0.45621664,111420.0,111410.0,0.55759251]
[1761428821892,0.09541664,111420.0,111410.0,0.55759251]
[1761428822094,0.45621664,111420.0,111410.0,0.55759251]
[1761428822287,0.09541664,111420.0,111410.0,0.55759251]
[1761428822488,0.45621664,111420.0,111410.0,0.55759251]
[1761428822688,0.09541664,111420.0,111410.0,0.55759251]
[1761428822889,0.45621664,111420.0,111410.0,0.55759251]
[1761428823294,0.09541664,111420.0,111410.0,0.55759251]
[1761428823486,0.45621664,111420.0,111410.0,0.55759251]
[1761428823686,0.09541664,111420.0,111410.0,0.55759251]
[1761428823995,0.41106664,111420.0,111410.0,0.55759251]
[1761428825092,0.45551664,111420.0,111410.0,0.55759251]
[1761428828396,0.09471664,111420.0,111410.0,0.55759251]
[1761428828597,0.45551664,111420.0,111410.0,0.55759251]
[1761428831400,0.09471664,111420.0,111410.0,0.55759251]
[1761428831601,0.45551664,111420.0,111410.0,0.55759251]
[1761428833204,0.09471664,111420.0,111410.0,0.55759251]
[1761428833398,0.45551664,111420.0,111410.0,0.55759251]
[1761428833604,0.07050729,111420.0,111410.0,0.91839251]
[1761428835403,0.07050729,111420.0,111410.0,1.00814171]
[1761428839300,0.04853729,111420.0,111410.0,1.18942422]
[1761428839707,0.02605729,111420.0,111410.0,1.18942422]
[1761428841007,0.00364874,111420.0,111410.0,1.18942422]
[1761428841408,0.07056276,111420.0,111410.0,1.18942422]
[1761428841707,0.07056276,111420.0,111410.0,1.00814171]
[1761428846411,0.07056276,111420.0,111410.0,0.64734171]
[1761428846608,0.07056276,111420.0,111410.0,0.8268592]
[1761428846812,0.07056276,111420.0,111410.0,0.91839251]
[1761428847013,0.07056276,111420.0,111410.0,1.09967502]
[1761428848218,0.02611276,111420.0,111410.0,1.09967502]
[1761428848612,0.02611276,111420.0,111410.0,0.91839251]
[1761428848912,0.04859276,111420.0,111410.0,0.91839251]
[1761428850616,0.04859276,111420.0,111410.0,0.55759251]
[1761428850914,0.04859276,111420.0,111410.0,0.91839251]
[1761428851113,0.02611276,111420.0,111410.0,0.55759251]
[1761428851315,0.02611276,111420.0,111410.0,0.91839251]
[1761428851718,0.04859276,111420.0,111410.0,0.91839251]
[1761428852218,0.04859276,111420.0,111410.0,0.55759251]
[1761428852820,0.04859276,111420.0,111410.0,0.89823659]
[1761428853221,0.02611276,111420.0,111410.0,0.89823659]
[1761428854619,0.04737276,111420.0,111410.0,0.89823659]
[1761428855013,0.06976276,111420.0,111410.0,0.89823659]
[1761428855520,0.04737276,111420.0,111410.0,0.89823659]
[1761428855922,0.02611276,111420.0,111410.0,0.89823659]
[1761428856121,0.04737276,111420.0,111410.0,0.89823659]
[1761428856613,0.04737276,111420.0,111410.0,0.98798579]
[1761428856813,0.02611276,111420.0,111410.0,0.98798579]
[1761428859322,0.04737276,111420.0,111410.0,0.98798579]
[1761428860021,0.06976276,111420.0,111410.0,0.98798579]
[1761428860413,0.06976276,111420.0,111410.0,0.89823659]
[1761428861418,0.06976276,111420.0,111410.0,0.53743659]
[1761428861630,0.06976276,111420.0,111410.0,0.89823659]
[1761428864025,0.06976276,111420.0,111410.0,0.53743659]
[1761428864226,0.06976276,111420.0,111410.0,0.89823659]
[1761428864422,0.06976276,111420.0,111410.0,0.53743659]
[1761428864913,0.06976276,111420.0,111410.0,0.89823659]
[1761428866021,0.06976276,111420.0,111410.0,0.53743659]
[1761428866221,0.06976276,111420.0,111410.0,0.89823659]
[1761428867623,0.06976276,111420.0,111410.0,0.53743659]
[1761428867923,0.06976276,111420.0,111410.0,0.89823659]
[1761428868523,0.06976276,111420.0,111410.0,0.53743659]
[1761428868725,0.06976276,111420.0,111410.0,0.89823659]
[1761428870018,0.06976276,111420.0,111410.0,0.89819659]
[1761428875525,0.06976276,111420.0,111410.0,0.53739659]
[1761428875725,0.06976276,111420.0,111410.0,0.89819659]
[1761428876426,0.06976276,111420.0,111410.0,0.53739659]
[1761428876626,0.06976276,111420.0,111410.0,0.89819659]
[1761428876822,0.04737276,111420.0,111410.0,0.89819659]
[1761428877030,0.02611276,111420.0,111410.0,0.89819659]
[1761428877747,0.02611276,111420.0,111410.0,0.53739659]
[1761428877949,0.04737276,111420.0,111410.0,0.89819659]
[1761428878152,0.06976276,111420.0,111410.0,0.89819659]
[1761428882052,0.08260276,111420.0,111410.0,0.89819659]
[1761428883453,0.06976276,111420.0,111410.0,0.89819659]
[1761428885556,0.06976276,111420.0,111410.0,0.53739659]
[1761428885744,0.06976276,111420.0,111410.0,0.89819659]
[1761428886652,0.06976276,111420.0,111410.0,0.53739659]
[1761428886850,0.06976276,111420.0,111410.0,0.89819659]
[1761428888559,0.02611276,111420.0,111410.0,0.89819659]
[1761428892362,0.02611276,111420.0,111410.0,0.53739659]
[1761428892567,0.02611276,111420.0,111410.0,0.89819659]
[1761428893364,0.02611276,111420.0,111410.0,0.53739659]
[1761428893566,0.02611276,111420.0,111410.0,0.89819659]
[1761428895266,0.04809276,111420.0,111410.0,0.73707]
[1761428895466,0.02611276,111420.0,111410.0,0.73707]
[1761428895667,0.02611276,111420.0,111410.0,0.89819659]
[1761428897076,0.02611276,111420.0,111410.0,0.53739659]
[1761428897371,0.02611276,111420.0,111410.0,0.89819659]
[1761428898169,0.02611276,111420.0,111410.0,0.53739659]
[1761428898371,0.06952276,111420.0,111410.0,0.89819659]
[1761428899162,0.06952276,111420.0,111410.0,0.53739659]
[1761428899367,0.06952276,111420.0,111410.0,0.89819659]
[1761428903277,0.02611276,111420.0,111410.0,0.89819659]
[1761428903986,0.02616344,111420.0,111410.0,0.89819659]
[1761428907585,0.02616344,111420.0,111410.0,0.73707]
[1761428907882,0.02616344,111420.0,111410.0,0.89819659]
[1761428908082,0.02616344,111420.0,111410.0,0.53739659]
[1761428908283,0.02616344,111420.0,111410.0,0.89819659]
[1761428909789,0.02616344,111420.0,111410.0,0.73707]
[1761428910086,0.02616344,111420.0,111410.0,0.89819659]
[1761428911585,0.02616344,111420.0,111410.0,0.53739659]
[1761428911786,0.02616344,111420.0,111410.0,0.89819659]
[1761428912288,0.04814344,111420.0,111410.0,0.89819659]
[1761428912686,0.02616344,111420.0,111410.0,0.91834357]
[1761428913785,0.02616344,111420.0,111410.0,0.55754357]
[1761428913982,0.02616344,111420.0,111410.0,0.91834357]
[1761428914383,0.02616344,111420.0,111410.0,0.55754357]
[1761428914683,0.02616344,111420.0,111410.0,0.91834357]
[1761428915290,0.02616344,111420.0,111410.0,0.55754357]
[1761428915486,0.02616344,111420.0,111410.0,0.91834357]
[1761428916287,0.02616344,111420.0,111410.0,0.55754357]
[1761428916891,0.02616344,111420.0,111410.0,0.91834357]
[1761428917092,0.04939344,111420.0,111410.0,0.91834357]
[1761428918491,0.04939344,111420.0,111410.0,0.55754357]
[1761428918789,0.02616344,111420.0,111410.0,0.91834357]
[1761428919491,0.02616344,111420.0,111410.0,0.55754357]
[1761428919690,0.02616344,111420.0,111410.0,0.91834357]
[1761428920291,0.02416344,111420.0,111410.0,0.91834357]
[1761428920792,0.02416344,111420.0,111410.0,0.55754357]
[1761428921194,0.02416344,111420.0,111410.0,0.91834357]
[1761428921895,0.06911344,111420.0,111410.0,0.91834357]
[1761428922593,0.06911344,111420.0,111410.0,0.73707]
[1761428922795,0.04739344,111420.0,111410.0,0.91834357]
[1761428923597,0.05539344,111420.0,111410.0,0.91834357]
[1761428924297,0.07711344,111420.0,111410.0,0.91834357]
[1761428926289,0.07711344,111420.0,111410.0,0.55754357]
[1761428926494,0.07711344,111420.0,111410.0,0.91834357]
[1761428926800,0.07711344,111420.0,111410.0,0.55754357]
[1761428926998,0.07711344,111420.0,111410.0,0.91834357]
[1761428928599,0.07711344,111420.0,111410.0,0.55754357]
[1761428928798,0.07711344,111420.0,111410.0,0.91834357]
[1761428933203,0.07711344,111420.0,111410.0,0.55754357]
[1761428933404,0.07711344,111420.0,111410.0,0.91834357]
[1761428933593,0.07711344,111420.0,111410.0,0.55754357]
[1761428933797,0.07711344,111420.0,111410.0,0.91834357]
[1761428934403,0.07711344,111420.0,111410.0,0.55754357]
[1761428934597,0.07711344,111420.0,111410.0,0.91834357]
[1761428940407,0.07711344,111420.0,111410.0,0.55754357]
[1761428940909,0.07711344,111420.0,111410.0,0.91834357]
[1761428941715,0.07711344,111420.0,111410.0,0.55754357]
[1761428941918,0.07711344,111420.0,111410.0,0.91834357]
[1761428942318,0.07711344,111420.0,111410.0,0.55754357]
[1761428942520,0.07711344,111420.0,111410.0,0.91834357]
[1761428942708,0.07711344,111420.0,111410.0,0.55754357]
[1761428943017,0.07711344,111420.0,111410.0,0.91834357]
[1761428943419,0.07711344,111420.0,111410.0,0.55754357]